[Event "Titled Tuesday Blitz November 14 Late 2023"]
[White "sjoerd893"]
[Black "VitaliyChayka"]
[WhiteElo "2567"]
[BlackElo "2345"]
[Result "0-1"]
[Round "7"]
[TimeControl "180+1"]
[Date "2023.11.14"]
[WhiteClock "0:01:30"]
[BlackClock "0:02:06"]
[Board "60"]

1. e4 {[%clk 0:02:56]}  d6 {[%clk 0:03:00]} 2. d4 {[%clk 0:02:56]}  Nf6 {[%clk 0:03:00]} 3. Nc3 {[%clk 0:02:56]}  e5 {[%clk 0:03:00]} 4. Nf3 {[%clk 0:02:52]}  Nbd7 {[%clk 0:03:00]} 5. Bc4 {[%clk 0:02:48]}  Be7 {[%clk 0:03:00]} 6. Be3 {[%clk 0:02:44]}  O-O {[%clk 0:02:58]} 7. h3 {[%clk 0:02:44]}  c6 {[%clk 0:02:58]} 8. Qd2 {[%clk 0:02:44]}  b5 {[%clk 0:02:58]} 9. Bd3 {[%clk 0:02:41]}  Qc7 {[%clk 0:02:58]} 10. O-O {[%clk 0:02:31]}  a6 {[%clk 0:02:58]} 11. Rfd1 {[%clk 0:02:30]}  Bb7 {[%clk 0:02:57]} 12. Rac1 {[%clk 0:02:29]}  c5 {[%clk 0:02:57]} 13. dxc5 {[%clk 0:02:26]}  dxc5 {[%clk 0:02:56]} 14. Nd5 {[%clk 0:02:15]}  Bxd5 {[%clk 0:02:52]} 15. exd5 {[%clk 0:02:16]}  e4 {[%clk 0:02:53]} 16. Ng5 {[%clk 0:01:56]}  exd3 {[%clk 0:02:46]} 17. Qxd3 {[%clk 0:01:57]}  Bd6 {[%clk 0:02:38]} 18. c4 {[%clk 0:01:49]}  Ne5 {[%clk 0:02:35]} 19. Qf5 {[%clk 0:01:49]}  Nxc4 {[%clk 0:02:31]} 20. Bd4 {[%clk 0:01:39]}  cxd4 {[%clk 0:02:28]} 21. b3 {[%clk 0:01:39]}  Bf4 {[%clk 0:02:18]} 22. Rc2 {[%clk 0:01:34]}  Bxg5 {[%clk 0:02:14]} 23. Qxg5 {[%clk 0:01:30]}  Qe5 {[%clk 0:02:06]} 0-1


[Site "https://www.chess.com"]

[Event "Titled Tuesday Blitz November 14 Late 2023"]
[White "Vafin, Ayrat"]
[Black "Silvestre, Christian"]
[WhiteFideId "4146530"]
[BlackFideId "30956269"]
[WhiteElo "2541"]
[BlackElo "2263"]
[Result "1-0"]
[Round "7"]
[TimeControl "180+1"]
[Date "2023.11.14"]
[WhiteClock "0:00:26"]
[BlackClock "0:00:09"]
[Board "61"]

1. Nf3 {[%clk 0:03:00]}  c5 {[%clk 0:02:58]} 2. c4 {[%clk 0:02:59]}  Nf6 {[%clk 0:02:56]} 3. Nc3 {[%clk 0:02:59]}  g6 {[%clk 0:02:56]} 4. d4 {[%clk 0:02:59]}  cxd4 {[%clk 0:02:57]} 5. Nxd4 {[%clk 0:03:00]}  Bg7 {[%clk 0:02:58]} 6. g3 {[%clk 0:03:00]}  O-O {[%clk 0:02:57]} 7. Bg2 {[%clk 0:03:01]}  a6 {[%clk 0:02:50]} 8. O-O {[%clk 0:03:00]}  d6 {[%clk 0:02:50]} 9. b3 {[%clk 0:03:00]}  Nbd7 {[%clk 0:02:49]} 10. Bb2 {[%clk 0:02:59]}  Qa5 {[%clk 0:02:47]} 11. h3 {[%clk 0:02:55]}  Rb8 {[%clk 0:02:44]} 12. a3 {[%clk 0:02:46]}  Ne5 {[%clk 0:02:43]} 13. f4 {[%clk 0:02:43]}  Nc6 {[%clk 0:02:41]} 14. b4 {[%clk 0:02:19]}  Qh5 {[%clk 0:02:37]} 15. e3 {[%clk 0:01:55]}  Nxd4 {[%clk 0:02:25]} 16. exd4 {[%clk 0:01:53]}  Bg4 {[%clk 0:01:49]} 17. hxg4 {[%clk 0:01:52]}  Nxg4 {[%clk 0:01:46]} 18. Rf3 {[%clk 0:01:45]}  Rbc8 {[%clk 0:01:34]} 19. Qd3 {[%clk 0:01:26]}  e5 {[%clk 0:01:27]} 20. fxe5 {[%clk 0:01:09]}  dxe5 {[%clk 0:01:25]} 21. Nd5 {[%clk 0:01:08]}  Rce8 {[%clk 0:00:58]} 22. dxe5 {[%clk 0:01:04]}  Qh2+ {[%clk 0:00:47]} 23. Kf1 {[%clk 0:01:04]}  Bxe5 {[%clk 0:00:42]} 24. Bxe5 {[%clk 0:00:49]}  Nxe5 {[%clk 0:00:41]} 25. Nf6+ {[%clk 0:00:48]}  Kh8 {[%clk 0:00:39]} 26. Qc3 {[%clk 0:00:46]}  Re6 {[%clk 0:00:36]} 27. Ng4 {[%clk 0:00:41]}  Qh5 {[%clk 0:00:25]} 28. Nxe5 {[%clk 0:00:41]}  Rxe5 {[%clk 0:00:22]} 29. Re1 {[%clk 0:00:38]}  Re8 {[%clk 0:00:23]} 30. Rxe5 {[%clk 0:00:36]}  Rxe5 {[%clk 0:00:23]} 31. Re3 {[%clk 0:00:28]}  Qd1+ {[%clk 0:00:22]} 32. Kf2 {[%clk 0:00:26]}  f6 {[%clk 0:00:17]} 33. Rxe5 {[%clk 0:00:26]}  fxe5 {[%clk 0:00:17]} 34. Qxe5+ {[%clk 0:00:26]}  Kg8 {[%clk 0:00:09]} 35. Bd5+ {[%clk 0:00:26]} 1-0


[Site "https://www.chess.com"]

[Event "Titled Tuesday Blitz November 14 Late 2023"]
[White "Hajiyev, Kanan"]
[Black "Adla, Diego"]
[WhiteFideId "13404148"]
[BlackFideId "100072"]
[WhiteElo "2495"]
[BlackElo "2649"]
[Result "0-1"]
[Round "7"]
[TimeControl "180+1"]
[Date "2023.11.14"]
[WhiteClock "0:00:11"]
[BlackClock "0:00:09"]
[Board "66"]

1. d4 {[%clk 0:03:00]}  Nf6 {[%clk 0:02:57]} 2. Nf3 {[%clk 0:03:01]}  d5 {[%clk 0:02:57]} 3. c4 {[%clk 0:03:01]}  e6 {[%clk 0:02:57]} 4. cxd5 {[%clk 0:03:02]}  exd5 {[%clk 0:02:57]} 5. Nc3 {[%clk 0:03:03]}  c6 {[%clk 0:02:56]} 6. Qc2 {[%clk 0:03:03]}  g6 {[%clk 0:02:53]} 7. Bg5 {[%clk 0:03:04]}  Bf5 {[%clk 0:02:51]} 8. Qb3 {[%clk 0:03:04]}  b6 {[%clk 0:02:48]} 9. e4 {[%clk 0:03:04]}  dxe4 {[%clk 0:02:46]} 10. Ne5 {[%clk 0:03:04]}  Qe7 {[%clk 0:02:39]} 11. Bc4 {[%clk 0:03:01]}  Be6 {[%clk 0:02:35]} 12. Nxe4 {[%clk 0:02:51]}  Bg7 {[%clk 0:02:33]} 13. Bxe6 {[%clk 0:02:24]}  fxe6 {[%clk 0:02:33]} 14. O-O {[%clk 0:01:57]}  O-O {[%clk 0:02:33]} 15. Rac1 {[%clk 0:01:52]}  c5 {[%clk 0:01:51]} 16. dxc5 {[%clk 0:01:42]}  bxc5 {[%clk 0:01:51]} 17. Nxc5 {[%clk 0:01:35]}  Qd6 {[%clk 0:01:50]} 18. Rfe1 {[%clk 0:01:22]}  Nd5 {[%clk 0:01:43]} 19. f4 {[%clk 0:00:34]}  Na6 {[%clk 0:01:29]} 20. Nxa6 {[%clk 0:00:26]}  Qxa6 {[%clk 0:01:28]} 21. Nd7 {[%clk 0:00:23]}  Rfe8 {[%clk 0:01:20]} 22. Nc5 {[%clk 0:00:23]}  Qb6 {[%clk 0:01:12]} 23. Qxb6 {[%clk 0:00:17]}  axb6 {[%clk 0:01:13]} 24. Nxe6 {[%clk 0:00:15]}  Bxb2 {[%clk 0:01:13]} 25. Rcd1 {[%clk 0:00:09]}  Bc3 {[%clk 0:01:00]} 26. Re4 {[%clk 0:00:05]}  Ra5 {[%clk 0:00:39]} 27. a4 {[%clk 0:00:05]}  Nc7 {[%clk 0:00:34]} 28. Nc5 {[%clk 0:00:05]}  Rxe4 {[%clk 0:00:32]} 29. Nxe4 {[%clk 0:00:06]}  Bb2 {[%clk 0:00:22]} 30. Rd8+ {[%clk 0:00:06]}  Kf7 {[%clk 0:00:21]} 31. Rd7+ {[%clk 0:00:07]}  Ke6 {[%clk 0:00:21]} 32. Rxc7 {[%clk 0:00:07]}  Rxa4 {[%clk 0:00:20]} 33. Nd2 {[%clk 0:00:04]}  Ra2 {[%clk 0:00:13]} 34. Kf1 {[%clk 0:00:03]}  Kf5 {[%clk 0:00:09]} 35. Nf3 {[%clk 0:00:03]}  Kg4 {[%clk 0:00:06]} 36. Ke2 {[%clk 0:00:02]}  Be5+ {[%clk 0:00:05]} 37. Kd3 {[%clk 0:00:03]}  Bxc7 {[%clk 0:00:06]} 38. h3+ {[%clk 0:00:03]}  Kg3 {[%clk 0:00:05]} 39. Ke4 {[%clk 0:00:03]}  Kxg2 {[%clk 0:00:05]} 40. Ne5 {[%clk 0:00:03]}  Ra4+ {[%clk 0:00:05]} 41. Kd5 {[%clk 0:00:03]}  Kxh3 {[%clk 0:00:03]} 42. Nc6 {[%clk 0:00:03]}  Ra1 {[%clk 0:00:02]} 43. Ke6 {[%clk 0:00:03]}  Rd1 {[%clk 0:00:02]} 44. Ne7 {[%clk 0:00:03]}  Rd6+ {[%clk 0:00:02]} 45. Kf7 {[%clk 0:00:03]}  b5 {[%clk 0:00:03]} 46. Ng8 {[%clk 0:00:04]}  b4 {[%clk 0:00:02]} 47. Be7 {[%clk 0:00:05]}  b3 {[%clk 0:00:03]} 48. Bxd6 {[%clk 0:00:05]}  Bxd6 {[%clk 0:00:04]} 49. Nf6 {[%clk 0:00:06]}  b2 {[%clk 0:00:04]} 50. Nxh7 {[%clk 0:00:07]}  b1=Q {[%clk 0:00:05]} 51. Ng5+ {[%clk 0:00:08]}  Kg4 {[%clk 0:00:05]} 52. Kg7 {[%clk 0:00:07]}  Qf5 {[%clk 0:00:06]} 53. Kh6 {[%clk 0:00:08]}  Qxf4 {[%clk 0:00:06]} 54. Kg7 {[%clk 0:00:08]}  Qxg5 {[%clk 0:00:07]} 55. Kf7 {[%clk 0:00:09]}  Qf5+ {[%clk 0:00:08]} 56. Kg8 {[%clk 0:00:09]}  Kh4 {[%clk 0:00:09]} 57. Kh7 {[%clk 0:00:10]}  g5+ {[%clk 0:00:09]} 58. Kg7 {[%clk 0:00:11]}  Be5+ {[%clk 0:00:10]} 59. Kg8 {[%clk 0:00:11]}  Qg6+ {[%clk 0:00:09]} 60. Kf8 {[%clk 0:00:11]}  Bd6# {[%clk 0:00:09]} 0-1


[Site "https://www.chess.com"]

[Event "Titled Tuesday Blitz November 14 Late 2023"]
[White "Vlassov, Nikolai"]
[Black "Shohat, Yotam"]
[WhiteFideId "4103360"]
[BlackFideId "2813955"]
[WhiteElo "2610"]
[BlackElo "2495"]
[Result "1-0"]
[Round "7"]
[TimeControl "180+1"]
[Date "2023.11.14"]
[WhiteClock "0:00:54"]
[BlackClock "0:00:00"]
[Board "67"]

1. e4 {[%clk 0:03:00]}  g6 {[%clk 0:02:58]} 2. Nc3 {[%clk 0:02:59]}  Nf6 {[%clk 0:02:57]} 3. e5 {[%clk 0:02:59]}  Nh5 {[%clk 0:02:57]} 4. d4 {[%clk 0:02:57]}  d6 {[%clk 0:02:57]} 5. g4 {[%clk 0:02:53]}  Ng7 {[%clk 0:02:55]} 6. h3 {[%clk 0:02:47]}  h5 {[%clk 0:02:52]} 7. gxh5 {[%clk 0:02:33]}  Nxh5 {[%clk 0:02:46]} 8. Be3 {[%clk 0:02:30]}  Nc6 {[%clk 0:02:42]} 9. e6 {[%clk 0:02:23]}  f5 {[%clk 0:02:26]} 10. d5 {[%clk 0:02:22]}  Ne5 {[%clk 0:02:21]} 11. Nf3 {[%clk 0:02:15]}  Bg7 {[%clk 0:02:11]} 12. Nxe5 {[%clk 0:02:13]}  Bxe5 {[%clk 0:02:10]} 13. Bd4 {[%clk 0:02:04]}  O-O {[%clk 0:02:05]} 14. Rg1 {[%clk 0:01:59]}  Kh7 {[%clk 0:02:04]} 15. Bxe5 {[%clk 0:01:52]}  dxe5 {[%clk 0:02:04]} 16. Qe2 {[%clk 0:01:51]}  e4 {[%clk 0:01:58]} 17. O-O-O {[%clk 0:01:50]}  Qd6 {[%clk 0:01:54]} 18. Kb1 {[%clk 0:01:46]}  a6 {[%clk 0:01:47]} 19. f3 {[%clk 0:01:39]}  exf3 {[%clk 0:01:18]} 20. Qxf3 {[%clk 0:01:39]}  b5 {[%clk 0:01:19]} 21. Be2 {[%clk 0:01:30]}  Rf6 {[%clk 0:00:48]} 22. Rg5 {[%clk 0:01:10]}  Ng7 {[%clk 0:00:19]} 23. Rdg1 {[%clk 0:01:00]}  b4 {[%clk 0:00:19]} 24. Qg2 {[%clk 0:00:57]}  Bxe6 {[%clk 0:00:00]} 25. Rxg6 {[%clk 0:00:54]} 1-0


[Site "https://www.chess.com"]

[Event "Titled Tuesday Blitz November 14 Late 2023"]
[White "Santos Flores, Alberto"]
[Black "Willy, Stephen"]
[WhiteFideId "3601234"]
[BlackFideId "30981468"]
[WhiteElo "2567"]
[BlackElo "2464"]
[Result "0-1"]
[Round "7"]
[TimeControl "180+1"]
[Date "2023.11.14"]
[WhiteClock "0:00:04"]
[BlackClock "0:00:07"]
[Board "69"]

1. e4 {[%clk 0:03:00]}  d5 {[%clk 0:02:52]} 2. exd5 {[%clk 0:03:00]}  Nf6 {[%clk 0:02:52]} 3. d4 {[%clk 0:03:00]}  Bg4 {[%clk 0:02:52]} 4. Nf3 {[%clk 0:03:00]}  Qxd5 {[%clk 0:02:50]} 5. Be2 {[%clk 0:03:00]}  e6 {[%clk 0:02:49]} 6. Be3 {[%clk 0:02:59]}  Nc6 {[%clk 0:02:49]} 7. Nbd2 {[%clk 0:02:58]}  O-O-O {[%clk 0:02:48]} 8. c4 {[%clk 0:02:58]}  Qh5 {[%clk 0:02:47]} 9. a3 {[%clk 0:02:58]}  Ne7 {[%clk 0:02:37]} 10. Ne5 {[%clk 0:02:54]}  Bxe2 {[%clk 0:02:33]} 11. Qxe2 {[%clk 0:02:55]}  Qxe2+ {[%clk 0:01:53]} 12. Kxe2 {[%clk 0:02:56]}  Rg8 {[%clk 0:01:46]} 13. Nxf7 {[%clk 0:02:56]}  Re8 {[%clk 0:01:46]} 14. Ne5 {[%clk 0:02:55]}  Nf5 {[%clk 0:01:47]} 15. Ndf3 {[%clk 0:02:52]}  Ne4 {[%clk 0:01:39]} 16. g4 {[%clk 0:02:45]}  Nxe3 {[%clk 0:01:24]} 17. Kxe3 {[%clk 0:02:45]}  Nf6 {[%clk 0:01:23]} 18. g5 {[%clk 0:02:41]}  Nh5 {[%clk 0:01:20]} 19. Rhg1 {[%clk 0:02:22]}  Be7 {[%clk 0:01:17]} 20. Rg4 {[%clk 0:02:19]}  Rgf8 {[%clk 0:01:16]} 21. Re4 {[%clk 0:01:50]}  g6 {[%clk 0:01:12]} 22. Re1 {[%clk 0:01:49]}  Rf5 {[%clk 0:01:05]} 23. h4 {[%clk 0:01:47]}  c5 {[%clk 0:00:57]} 24. d5 {[%clk 0:01:39]}  exd5 {[%clk 0:00:56]} 25. cxd5 {[%clk 0:01:39]}  Bd6 {[%clk 0:00:57]} 26. Kd3 {[%clk 0:00:47]}  Nf4+ {[%clk 0:00:47]} 27. Kc4 {[%clk 0:00:45]}  Ng2 {[%clk 0:00:26]} 28. R1e2 {[%clk 0:00:41]}  Nf4 {[%clk 0:00:26]} 29. Re1 {[%clk 0:00:34]}  Nh3 {[%clk 0:00:16]} 30. R4e2 {[%clk 0:00:23]}  Ref8 {[%clk 0:00:14]} 31. Nd2 {[%clk 0:00:18]}  Nf4 {[%clk 0:00:08]} 32. Re4 {[%clk 0:00:17]}  Ng2 {[%clk 0:00:08]} 33. R1e2 {[%clk 0:00:17]}  Rxf2 {[%clk 0:00:08]} 34. Kc3 {[%clk 0:00:10]}  Rxe2 {[%clk 0:00:06]} 35. Rxe2 {[%clk 0:00:11]}  Nf4 {[%clk 0:00:07]} 36. Re4 {[%clk 0:00:11]}  Nxd5+ {[%clk 0:00:07]} 37. Kc2 {[%clk 0:00:11]}  Rf4 {[%clk 0:00:06]} 38. Re1 {[%clk 0:00:08]}  Rf2 {[%clk 0:00:04]} 39. Nc4 {[%clk 0:00:08]}  Bf4 {[%clk 0:00:04]} 40. Re8+ {[%clk 0:00:07]}  Kd7 {[%clk 0:00:04]} 41. Rh8 {[%clk 0:00:07]}  b5 {[%clk 0:00:05]} 42. Rxh7+ {[%clk 0:00:07]}  Ke6 {[%clk 0:00:05]} 43. Kd3 {[%clk 0:00:05]}  bxc4+ {[%clk 0:00:05]} 44. Nxc4 {[%clk 0:00:06]}  Rxb2 {[%clk 0:00:05]} 45. Rg7 {[%clk 0:00:05]}  Rg2 {[%clk 0:00:03]} 46. Rxg6+ {[%clk 0:00:05]}  Kf5 {[%clk 0:00:04]} 47. Ra6 {[%clk 0:00:06]}  Rg3+ {[%clk 0:00:04]} 48. Kc2 {[%clk 0:00:06]}  Rc3+ {[%clk 0:00:04]} 49. Kb2 {[%clk 0:00:06]}  Rxc4 {[%clk 0:00:04]} 50. Rxa7 {[%clk 0:00:06]}  Be5+ {[%clk 0:00:05]} 51. Kb3 {[%clk 0:00:06]}  Rxh4 {[%clk 0:00:05]} 52. a4 {[%clk 0:00:06]}  c4+ {[%clk 0:00:06]} 53. Kc2 {[%clk 0:00:05]}  Rh2+ {[%clk 0:00:06]} 54. Kd1 {[%clk 0:00:05]}  Ke4 {[%clk 0:00:06]} 55. Rd7 {[%clk 0:00:05]}  Ne3+ {[%clk 0:00:06]} 56. Kc1 {[%clk 0:00:06]}  Bb2+ {[%clk 0:00:06]} 57. Kb1 {[%clk 0:00:06]}  c3 {[%clk 0:00:07]} 58. Rc7 {[%clk 0:00:05]}  Kd3 {[%clk 0:00:06]} 59. g6 {[%clk 0:00:05]}  Ba3 {[%clk 0:00:06]} 60. g7 {[%clk 0:00:05]}  Rg2 {[%clk 0:00:06]} 61. a5 {[%clk 0:00:05]}  c2+ {[%clk 0:00:06]} 62. Rxc2 {[%clk 0:00:05]}  Nxc2 {[%clk 0:00:07]} 63. a6 {[%clk 0:00:05]}  Nb4 {[%clk 0:00:07]} 64. a7 {[%clk 0:00:05]}  Rb2+ {[%clk 0:00:07]} 65. Ka1 {[%clk 0:00:04]}  Nc2# {[%clk 0:00:07]} 0-1


[Site "https://www.chess.com"]

[Event "Titled Tuesday Blitz November 14 Late 2023"]
[White "Likvidator228"]
[Black "Kustar, Sandor"]
[BlackFideId "702900"]
[WhiteElo "2564"]
[BlackElo "2453"]
[Result "1-0"]
[Round "7"]
[TimeControl "180+1"]
[Date "2023.11.14"]
[WhiteClock "0:00:31"]
[BlackClock "0:00:00"]
[Board "70"]

1. e4 {[%clk 0:02:59]}  c5 {[%clk 0:00:45]} 2. Nc3 {[%clk 0:02:52]}  e6 {[%clk 0:00:45]} 3. g3 {[%clk 0:02:51]}  a6 {[%clk 0:00:44]} 4. Bg2 {[%clk 0:02:51]}  d6 {[%clk 0:00:44]} 5. f4 {[%clk 0:02:51]}  Nc6 {[%clk 0:00:43]} 6. Nf3 {[%clk 0:02:51]}  g6 {[%clk 0:00:43]} 7. O-O {[%clk 0:02:51]}  Bg7 {[%clk 0:00:43]} 8. d3 {[%clk 0:02:51]}  Nge7 {[%clk 0:00:43]} 9. a4 {[%clk 0:02:47]}  Rb8 {[%clk 0:00:43]} 10. g4 {[%clk 0:02:43]}  h5 {[%clk 0:00:40]} 11. h3 {[%clk 0:02:41]}  b5 {[%clk 0:00:31]} 12. axb5 {[%clk 0:02:41]}  axb5 {[%clk 0:00:31]} 13. f5 {[%clk 0:02:28]}  hxg4 {[%clk 0:00:29]} 14. hxg4 {[%clk 0:02:28]}  gxf5 {[%clk 0:00:28]} 15. exf5 {[%clk 0:02:26]}  exf5 {[%clk 0:00:16]} 16. g5 {[%clk 0:02:26]}  Nd4 {[%clk 0:00:15]} 17. Ne2 {[%clk 0:02:19]}  Ne6 {[%clk 0:00:13]} 18. c3 {[%clk 0:02:14]}  Ng6 {[%clk 0:00:13]} 19. Ng3 {[%clk 0:01:55]}  Kf8 {[%clk 0:00:11]} 20. Nxf5 {[%clk 0:01:55]}  Be5 {[%clk 0:00:05]} 21. d4 {[%clk 0:01:51]}  cxd4 {[%clk 0:00:05]} 22. cxd4 {[%clk 0:01:51]}  Bf4 {[%clk 0:00:05]} 23. d5 {[%clk 0:01:39]}  Nc5 {[%clk 0:00:06]} 24. N3d4 {[%clk 0:01:34]}  Be5 {[%clk 0:00:04]} 25. Nc6 {[%clk 0:01:31]}  Qc7 {[%clk 0:00:04]} 26. Nxb8 {[%clk 0:01:18]}  Qxb8 {[%clk 0:00:04]} 27. Be3 {[%clk 0:01:08]}  Qc7 {[%clk 0:00:02]} 28. Rc1 {[%clk 0:00:59]}  Bxf5 {[%clk 0:00:02]} 29. Rxf5 {[%clk 0:00:58]}  Qd7 {[%clk 0:00:02]} 30. Qc2 {[%clk 0:00:32]}  Kg7 {[%clk 0:00:03]} 31. Rcf1 {[%clk 0:00:31]}  Rf8 {[%clk 0:00:02]} 32. b4 {[%clk 0:00:31]}  Na4 {[%clk 0:00:00]} 33. Qc6 {[%clk 0:00:31]} 1-0


[Site "https://www.chess.com"]

[Event "Titled Tuesday Blitz November 14 Late 2023"]
[White "Ozates, Tuna"]
[Black "Polaczek, Richard"]
[WhiteFideId "6354521"]
[BlackFideId "200026"]
[WhiteElo "2555"]
[BlackElo "2441"]
[Result "1-0"]
[Round "7"]
[TimeControl "180+1"]
[Date "2023.11.14"]
[WhiteClock "0:01:09"]
[BlackClock "0:00:01"]
[Board "73"]

1. e4 {[%clk 0:03:00]}  Nf6 {[%clk 0:02:59]} 2. e5 {[%clk 0:03:00]}  Nd5 {[%clk 0:02:59]} 3. d4 {[%clk 0:03:01]}  d6 {[%clk 0:02:59]} 4. Nf3 {[%clk 0:03:02]}  g6 {[%clk 0:02:59]} 5. c4 {[%clk 0:03:01]}  Nb6 {[%clk 0:02:58]} 6. Bf4 {[%clk 0:03:00]}  Bg7 {[%clk 0:02:57]} 7. h3 {[%clk 0:03:00]}  O-O {[%clk 0:02:57]} 8. Nc3 {[%clk 0:03:00]}  Nc6 {[%clk 0:02:56]} 9. exd6 {[%clk 0:02:59]}  cxd6 {[%clk 0:02:48]} 10. Be2 {[%clk 0:02:59]}  h6 {[%clk 0:02:46]} 11. O-O {[%clk 0:02:58]}  e5 {[%clk 0:02:43]} 12. Be3 {[%clk 0:02:57]}  Re8 {[%clk 0:02:29]} 13. d5 {[%clk 0:02:56]}  Ne7 {[%clk 0:02:28]} 14. c5 {[%clk 0:02:49]}  dxc5 {[%clk 0:02:22]} 15. d6 {[%clk 0:02:50]}  Nf5 {[%clk 0:02:20]} 16. Bxc5 {[%clk 0:02:51]}  e4 {[%clk 0:02:15]} 17. Nd2 {[%clk 0:02:43]}  Nxd6 {[%clk 0:02:09]} 18. Bxd6 {[%clk 0:02:41]}  Qxd6 {[%clk 0:02:08]} 19. Ndxe4 {[%clk 0:02:42]}  Qe5 {[%clk 0:01:56]} 20. Bf3 {[%clk 0:02:39]}  Bf5 {[%clk 0:01:46]} 21. Re1 {[%clk 0:02:39]}  Rad8 {[%clk 0:01:42]} 22. Qb3 {[%clk 0:02:36]}  Be6 {[%clk 0:01:41]} 23. Qb5 {[%clk 0:02:36]}  Qxb5 {[%clk 0:01:39]} 24. Nxb5 {[%clk 0:02:36]}  Bxb2 {[%clk 0:01:38]} 25. Rab1 {[%clk 0:02:32]}  Na4 {[%clk 0:01:22]} 26. Ned6 {[%clk 0:02:31]}  Bxa2 {[%clk 0:01:15]} 27. Nxe8 {[%clk 0:01:54]}  Bxb1 {[%clk 0:01:11]} 28. Nbd6 {[%clk 0:01:50]}  Ba2 {[%clk 0:01:01]} 29. Nxb7 {[%clk 0:01:36]}  Rd2 {[%clk 0:00:47]} 30. Ned6 {[%clk 0:01:24]}  Bd4 {[%clk 0:00:42]} 31. Re8+ {[%clk 0:01:23]}  Kg7 {[%clk 0:00:41]} 32. Rc8 {[%clk 0:01:16]}  Bxf2+ {[%clk 0:00:40]} 33. Kf1 {[%clk 0:01:16]}  Bg3 {[%clk 0:00:33]} 34. Ne8+ {[%clk 0:01:14]}  Kf8 {[%clk 0:00:31]} 35. Nf6+ {[%clk 0:01:09]}  Kg7 {[%clk 0:00:31]} 36. Ne4 {[%clk 0:01:10]}  Rb2 {[%clk 0:00:01]} 37. Nxg3 {[%clk 0:01:09]} 1-0


[Site "https://www.chess.com"]

[Event "Titled Tuesday Blitz November 14 Late 2023"]
[White "Shapiro, Viktor"]
[Black "Mazurkiewicz, Michal"]
[WhiteFideId "4175700"]
[BlackFideId "1124943"]
[WhiteElo "2554"]
[BlackElo "2437"]
[Result "1-0"]
[Round "7"]
[TimeControl "180+1"]
[Date "2023.11.14"]
[WhiteClock "0:00:08"]
[BlackClock "0:00:04"]
[Board "74"]

1. c4 {[%clk 0:03:00]}  Nf6 {[%clk 0:02:59]} 2. Nc3 {[%clk 0:03:00]}  g6 {[%clk 0:02:59]} 3. g3 {[%clk 0:03:01]}  Bg7 {[%clk 0:02:59]} 4. Bg2 {[%clk 0:03:01]}  O-O {[%clk 0:02:58]} 5. Nf3 {[%clk 0:03:01]}  d6 {[%clk 0:02:59]} 6. O-O {[%clk 0:02:59]}  c5 {[%clk 0:02:59]} 7. a3 {[%clk 0:02:59]}  Nc6 {[%clk 0:02:59]} 8. Rb1 {[%clk 0:02:59]}  Rb8 {[%clk 0:02:59]} 9. b4 {[%clk 0:02:58]}  b6 {[%clk 0:02:59]} 10. d3 {[%clk 0:02:57]}  Bb7 {[%clk 0:02:59]} 11. e4 {[%clk 0:02:51]}  e6 {[%clk 0:02:54]} 12. h3 {[%clk 0:02:37]}  h6 {[%clk 0:02:43]} 13. Be3 {[%clk 0:02:29]}  cxb4 {[%clk 0:01:58]} 14. axb4 {[%clk 0:02:26]}  d5 {[%clk 0:01:58]} 15. cxd5 {[%clk 0:02:17]}  exd5 {[%clk 0:01:58]} 16. e5 {[%clk 0:02:17]}  Nxe5 {[%clk 0:01:54]} 17. Nxe5 {[%clk 0:02:16]}  d4 {[%clk 0:01:54]} 18. Bxb7 {[%clk 0:02:10]}  Rxb7 {[%clk 0:01:54]} 19. Nc6 {[%clk 0:02:10]}  Qc8 {[%clk 0:01:41]} 20. Bxd4 {[%clk 0:01:35]}  Qxc6 {[%clk 0:01:40]} 21. b5 {[%clk 0:01:30]}  Qd7 {[%clk 0:01:40]} 22. Bxf6 {[%clk 0:01:18]}  Bxf6 {[%clk 0:01:41]} 23. Ne4 {[%clk 0:01:19]}  Bd4 {[%clk 0:01:42]} 24. Rb4 {[%clk 0:01:04]}  f5 {[%clk 0:01:28]} 25. Qa4 {[%clk 0:00:55]}  Rd8 {[%clk 0:01:23]} 26. Nd2 {[%clk 0:00:28]}  Bc5 {[%clk 0:01:22]} 27. Rb3 {[%clk 0:00:16]}  Qc7 {[%clk 0:00:56]} 28. Kg2 {[%clk 0:00:14]}  Rd4 {[%clk 0:00:56]} 29. Qa2 {[%clk 0:00:13]}  Qf7 {[%clk 0:00:55]} 30. Qc2 {[%clk 0:00:10]}  Rbd7 {[%clk 0:00:54]} 31. Nf3 {[%clk 0:00:10]}  Qd5 {[%clk 0:00:53]} 32. Re1 {[%clk 0:00:09]}  g5 {[%clk 0:00:44]} 33. Re5 {[%clk 0:00:08]}  Qb7 {[%clk 0:00:18]} 34. Rxf5 {[%clk 0:00:09]}  R4d5 {[%clk 0:00:15]} 35. Rxd5 {[%clk 0:00:08]}  Qxd5 {[%clk 0:00:16]} 36. d4 {[%clk 0:00:08]}  Bd6 {[%clk 0:00:14]} 37. Qg6+ {[%clk 0:00:08]}  Rg7 {[%clk 0:00:14]} 38. Qe8+ {[%clk 0:00:08]}  Kh7 {[%clk 0:00:14]} 39. Re3 {[%clk 0:00:08]}  Rf7 {[%clk 0:00:14]} 40. Qe4+ {[%clk 0:00:07]}  Qxe4 {[%clk 0:00:14]} 41. Rxe4 {[%clk 0:00:08]}  Rf5 {[%clk 0:00:14]} 42. Re6 {[%clk 0:00:07]}  Bb4 {[%clk 0:00:13]} 43. Ne5 {[%clk 0:00:07]}  Be1 {[%clk 0:00:13]} 44. f3 {[%clk 0:00:07]}  Bc3 {[%clk 0:00:11]} 45. Re7+ {[%clk 0:00:07]}  Kg8 {[%clk 0:00:12]} 46. Nc6 {[%clk 0:00:07]}  Rxb5 {[%clk 0:00:11]} 47. Rxa7 {[%clk 0:00:07]}  Rb2+ {[%clk 0:00:11]} 48. Kf1 {[%clk 0:00:07]}  Rd2 {[%clk 0:00:11]} 49. d5 {[%clk 0:00:07]}  Rxd5 {[%clk 0:00:10]} 50. Ne7+ {[%clk 0:00:07]}  Kf8 {[%clk 0:00:09]} 51. Nxd5 {[%clk 0:00:08]}  Bd4 {[%clk 0:00:04]} 52. Rb7 {[%clk 0:00:08]} 1-0


[Site "https://www.chess.com"]